{"text_format":"1","workbook":"xlsx","n_sheets":4,"sheets":["Produkte Milis_Biooase","as","Ergebnisliste","Kriterien"],"not_rendered":{"charts":0,"images":0,"macros":1,"external_links":0,"defined_names":6,"comments":0,"pivot_tables":1},"unopened":[],"bounds":{"document_bytes":16777216,"sheet_cells":100000,"rows_first":2000,"rows_last":500,"rows_between":2000,"halvings":0,"cell_chars":16384,"cell_head_chars":4096},"cells_cut":0,"cells_raw":0,"read":"whole","date_system":"1900"}

{"sheet":"Produkte Milis_Biooase","index":0,"n_rows":232,"n_cols":10,"rows_kept":232,"cut":false,"hidden":false,"merged":[[0,7,2,9],[0,0,0,1],[1,0,1,1],[2,0,2,1]]}
["Bestellung für den :",null,"2020-04-18",null,null,null,null,{"$f":"SUM(J6:J231)","v":0}]
["schreib hier deinen Namen ",null,"Dein Name"]
[" und deine Email ",null,"Deine Email"]
[null,null,{"$f":"TODAY()","v":"2020-04-14"},null,null,null,null,null,{"$f":"H1","v":0}]
[null,"   Produkte von","Kommentar","Gruppe","Nr","Produkt","EZ Preis ","Einheit","Menge","Preis"]
[null,"Pscheiden","Hartweizen gelb mit Ei","Nudeln",1,"Bio Hartweizen Suppennudeln",2.7,"250 gr",null,{"$f":"IF(I6=\"\",0,G6*I6)","v":0}]
[null,"Pscheiden","Hartweizen gelb mit Ei","Nudeln",2,"Bio Hartweizen Suppen Einlage klein",2.7,"250 gr",null,{"$f":"IF(I7=\" \",0,G7*I7)","v":0}]
[null,"Pscheiden","Hartweizen gelb mit Ei","Nudeln",3,"Bio Hartweizen Bandnudeln",2.7,"250 gr",null,0]
[null,"Pscheiden","Hartweizen gelb mit Ei","Nudeln",4,"Bio Hartweizen Bandnudeln gewellt",2.7,"250 gr",null,0]
[null,"Pscheiden","Hartweizen gelb mit Ei","Nudeln",5,"Bio Hartweizen Rüschenhörnchen",2.7,"250 gr",null,0]
[null,"Pscheiden","Hartweizen gelb mit Ei","Nudeln",6,"Bio Hartweizen Raabtalwellen",2.7,"250 gr",null,{"$f":"G11*I11","v":0}]
[null,"Pscheiden","Hartweizen gelb mit Ei","Nudeln",7,"Bio Hartweizen Spiralen",2.7,"250 gr",null,0]
[null,"Pscheiden","Hartweizen gelb mit Ei","Nudeln",8,"Bio Hartweizen Röschen",2.7,"250 gr",null,0]
[null,"Pscheiden","Hartweizen gelb mit Ei","Nudeln",9,"Bio Hartweizen Locken",2.7,"250 gr",null,0]
[null,"Pscheiden","Hartweizen gelb mit Ei","Nudeln",10,"Bio Hartweizen Kreisel",2.7,"250 gr",null,0]
[null,"Pscheiden","Hartweizen gelb mit Ei","Nudeln",11,"Bio Hartweizen Fleckerl ",2.7,"250 gr",null,0]
[null,"Pscheiden","Hartweizen gelb mit Ei","Nudeln",12,"Bio Hartweizen Spaghetti",2.7,"250 gr",null,0]
[null,"Pscheiden","Hartweizen gelb mit Ei","Nudeln",13,"Bio Hartweizen Spaghetti Knoblauch",3,"250 gr",null,0]
[null,"Pscheiden","Hartweizen gelb mit Ei","Nudeln",14,"Bio Hartweizen Bandnudeln Knoblauch",3,"250 gr",null,0]
[null,"Pscheiden","Hartweizen mit Ei","Nudeln",15,"Bio Hartweizen Suppeneinlagen bunt",3,"250 gr",null,0]
[null,"Pscheiden","Hartweizen mit Ei","Nudeln",16,"Bio Hartweizen Raabtalwellen bunt",3,"250 gr",null,0]
[null,"Pscheiden","Hartweizen mit Ei","Nudeln",17,"Bio Hartweizen Spiralen bunt ",3,"250 gr",null,0]
[null,"Pscheiden","Hartweizen mit Ei","Nudeln",18,"Bio Hartweizen Bandnudeln Bärlauch",3.7,"250 gr",null,0]
[null,"Pscheiden","Hartweizen mit Ei","Nudeln",19,"Bio Hartweizen Bandnudeln Curcuma",3.7,"250 gr",null,0]
[null,"Pscheiden","Hartweizen mit Ei","Nudeln",20,"Bio Hartweizen Nudeln Basilikum",3.7,"250 gr",null,0]
[null,"Pscheiden","Hartweizen mit Ei","Nudeln",21,"Bio Hartweizen Chili Paprika -Locken",3.7,"250 gr",null,0]
[null,"Pscheiden","Rotkorn mit Ei","Nudeln",22,"Bio Rotkorn (Urweizen) Locken",3.7,"250 gr",null,0]
[null,"Pscheiden","Buchweizen mit Ei","Nudeln",23,"Bio Buchweizen - Bandnudeln",4.0999999999999996,"250 gr",null,0]
[null,"Pscheiden","Buchweizen mit Ei","Nudeln",24,"Bio Buchweizen - Spiralen",4.0999999999999996,"250 gr",null,0]
[null,"Pscheiden","Buchweizen mit Ei","Nudeln",25,"Bio Buchweizen - Suppeneinlage",4.0999999999999996,"250 gr",null,0]
[null,"Pscheiden","Hirse mit Ei","Nudeln",26,"Bio Hirse - Spiralen",4.0999999999999996,"250 gr",null,0]
[null,"Pscheiden","Hirse mit Ei","Nudeln",27,"Bio Hirse - Suppeneinlag",4.0999999999999996,"250 gr",null,0]
[null,"Pscheiden","Braunhirse mit Ei","Nudeln",28,"Bio Braunhirse - Spiralen",4.0999999999999996,"250 gr",null,0]
[null,"Pscheiden","Hartweizen mit Gerstengras","Nudeln",29,"Bio Hartweizen – Suppennudeln",4.0999999999999996,"250 gr",null,{"$f":"G34*I34","v":0}]
[null,"Pscheiden","Hartweizen mit Gerstengras","Nudeln",30,"Bio Hartweizen Bandnudeln gewellt ",4.0999999999999996,"250 gr",null,0]
[null,"Pscheiden","Hartweizen mit Gerstengras","Nudeln",31,"Bio Hartweizen Bandnudeln",4.0999999999999996,"250 gr",null,0]
[null,"Pscheiden","Hartweizen mit Gerstengras","Nudeln",32,"Bio Hartweizen Locken",4.0999999999999996,"250 gr",null,0]
[null,"Pscheiden","Dinkelvollkorn ohne Ei","Nudeln",33,"Bio Dinkel Suppennudeln",3,"250 gr",null,0]
[null,"Pscheiden","Dinkelvollkorn ohne Ei","Nudeln",34,"Bio Dinkel Suppen- Einlage",3,"250 gr",null,{"$f":"G39*I39","v":0}]
[null,"Pscheiden","Dinkelvollkorn ohne Ei","Nudeln",35,"Bio Dinkel Bandnudeln",3,"250 gr",null,0]
[null,"Pscheiden","Dinkelvollkorn ohne Ei","Nudeln",36,"Bio Dinkel Bandnudeln gewellt",3,"250 gr",null,0]
[null,"Pscheiden","Dinkelvollkorn ohne Ei","Nudeln",37,"Bio Dinkel Spiralen",3,"250 gr",null,0]
[null,"Pscheiden","Dinkelvollkorn ohne Ei","Nudeln",38,"Bio Dinkel Kreisel",3,"250 gr",null,0]
[null,"Pscheiden","Dinkelvollkorn ohne Ei","Nudeln",39,"Bio Dinkel Fleckerl",3,"250 gr",null,0]
[null,"Pscheiden","Dinkelvollkorn ohne Ei","Nudeln",40,"Bio Dinkel Spaghetti",3,"250 gr",null,0]
[null,"Pscheiden","Dinkelvollkorn ohne Ei","Nudeln",41,"Bio Dinkel Raabtalwellen",3,"250 gr",null,{"$f":"G46*I46","v":0}]
[null,"Pscheiden","Pharaonenkorn (Urweizen) ohne Ei","Nudeln",42,"Bio Pharaonenkorn Spiralen",3.7,"250 gr",null,{"$f":"G47*I47","v":0}]
[null,"Pscheiden","Pharaonenkorn (Urweizen) ohne Ei","Nudeln",43,"Bio Pharaonenkorn Bandnudeln",3.7,"250 gr",null,0]
[null,"Pscheiden","Pharaonenkorn (Urweizen) ohne Ei","Nudeln",44,"Bio Pharaonenkorn Suppennudeln",3.7,"250 gr",null,0]
[null,"Pscheiden","Pharaonenkorn (Urweizen) ohne Ei","Nudeln",45,"Bio Pharaonenkorn Suppeneinlage ",3.7,"250 gr",null,0]
[null,"Pscheiden","Bio- Getreide","Getreide/Mehl",46,"Bio Dinkelvollkornmehl",3.3,"1 kg",null,0]
[null,"Pscheiden","Bio- Getreide","Getreide/Mehl",47,"Bio Dinkelmehl fein",3.5,"1 kg",null,0]
[null,"Pscheiden","Bio- Getreide","Getreide/Mehl",48,"Bio Dinkelgrieß",4.5,"1 kg",null,0]
[null,"Pscheiden","Bio- Getreide","Getreide/Mehl",49,"Bio Dinkelgrieß",2.5,"500 gr",null,{"$f":"G54*I54","v":0}]
[null,"Pscheiden","Bio- Getreide","Getreide/Mehl",50,"Bio Dinkelreis",4.5,"1 kg",null,0]
[null,"Pscheiden","Bio- Getreide","Getreide/Mehl",51,"Bio Dinkelreis",2.5,"500 gr",null,0]
[null,"Pscheiden","Bio- Getreide","Getreide/Mehl",52,"Bio Dinkelkörner",2.7,"1 kg",null,0]
[null,"Pscheiden","Bio- Getreide","Getreide/Mehl",53,"Bio Hirse",4.5,"1 kg",null,{"$f":"G58*I58","v":0}]
[null,"Pscheiden","Bio- Getreide","Getreide/Mehl",54,"Bio Hirse",2.5,"500 gr",null,0]
[null,"Pscheiden","Bio- Getreide","Getreide/Mehl",55,"Bio Buchweizenmehl",6.5,"1 kg",null,{"$f":"G60*I60","v":0}]
[null,"Pscheiden","Bio- Getreide","Getreide/Mehl",56,"Bio Buchweizenmehl",3.5,"500 gr",null,0]
[null,"Pscheiden","Bio- Getreide","Getreide/Mehl",57,"Bio Buchweizenkörner",5.5,"1 kg",null,{"$f":"G62*I62","v":0}]
[null,"Pscheiden","Bio- Getreide","Getreide/Mehl",58,"Bio Buchweizenkörner",3.5,"500 gr",null,0]
[null,"Pscheiden","Bio- Getreide","Getreide/Mehl",59,"Bio Polenta Maisgrieß",3.5,"1 kg",null,{"$f":"G64*I64","v":0}]
[null,"Pscheiden","Bio- Getreide","Getreide/Mehl",60,"Bio Polenta Maisgrieß",2,"500 gr",null,0]
[null,"Pscheiden","Bio- Getreide","Getreide/Mehl",61,"Bio Palatschinken Mehl",3.9,"400 gr",null,0]
[null,"Pscheiden",null,"Getreide/Mehl",62,"Bio-Haferflocken",2.7,"500 gr",null,0]
[null,"Pscheiden",null,"Getreide/Mehl",63,"Bio-Haferflocken fein ",2.7,"500 gr",null,0]
[null,"Pscheiden",null,"Getreide/Mehl",64,"Bio-Dinkelflocken ",2.7,"500 gr",null,0]
[null,"Pscheiden","(Hafer , Dinkel , Buchweizen , Apfel,  Erdbeere , Flohsamen )","Getreide/Mehl",65,"Bio-Mehrkorn Müsli",5.5,"500 gr",null,0]
[null,"Pscheiden","Mehl","Getreide/Mehl",66,"Bio Weizenmehl",2.7,"1 kg",null,0]
[null,"Pscheiden","Mehl","Getreide/Mehl",67,"Bio Roggenmehl",2.7,"1 kg",null,0]
[null,"Pscheiden","Mehl","Getreide/Mehl",68,"Bio Pharaonenkornmehl",5.5,"1 kg",null,0]
[null,"Pscheiden",null,"Getreide/Mehl",69,"Bio Braunhirse gemahlen",3,"300 gr",null,{"$f":"G74*I74","v":0}]
[null,"Pscheiden",null,"Getreide/Mehl",70,"Bio Braunhirse gemahlen",4.5,"500 gr",null,0]
[null,"Pscheiden","Apfelsaft Trinkfertig","Saft",71,"Bio Goldkelchen",1.9,"330 ml",null,0]
[null,"Pscheiden","incl. Pfand 50 cent","Saft",72,"Bio - Apfelsaft",3,"1 l",null,0]
[null,"Pscheiden","incl. Pfand 50 cent","Essig",73,"Bio – Apfelessig            ",4.5,"1 l",null,0]
[null,"Pscheiden","Alkohol","Schnaps",74,"Bio Nussschnaps",6.9,"100 ml",null,0]
[null,"Pscheiden","Alkohol","Schnaps",75,"Bio Eierlikör",8.9,"330 ml",null,0]
[null,"Pscheiden","Sirup","Saft",76,"Bio Johannisbeersirup ",6.5,"330 ml",null,0]
[null,"Pscheiden","Sirup","Saft",77,"Bio Hollerblütensirup     ",6.5,"330 ml",null,0]
[null,"Pscheiden","Honig","Honig",78,"Bio Honig",12,"1 kg",null,{"$f":"G83*I83","v":0}]
[null,"Pscheiden","Honig","Honig",79,"Bio Honig",6.5,"500 gr",null,0]
[null,"Pscheiden","Eier","Eier",80,"Bio Eier Gr L",3.8,"10 Stk",null,0]
[null,"Pscheiden","Eier","Eier",81,"Bio Eier Gr XL    ",4,"10 Stk",null,0]
[null,"Pscheiden","Eier","Eier",82,"Bio Eier Gr XXL  ",4.5,"10 Stk",null,0]
[null,"Pscheiden","Eier","Eier",83,"Bio Eier 1 kg Box ",6.5,"1 kg",null,0]
[null,"Pfister","min 200 gr.","Pilze",84,"Bio Shiitake",4.8,"200 gr",null,0]
[null,"Brauchart","Preis pro kg","Bort/Gebäck",85,"Bio Glutenfreies Brot",16,"1 kg",null,0]
[null,"Brauchart","Preis pro kg","Bort/Gebäck",86,"Bio Bauernbrot",5.2,"1 kg",null,0]
[null,"Brauchart","Preis pro kg","Bort/Gebäck",87,"Bio Roggenbrot",5.2,"1 kg",null,0]
[null,"Brauchart","Preis pro kg","Bort/Gebäck",88,"Bio Gewürzbrot ",5.2,"1 kg",null,0]
[null,"Brauchart","Preis pro kg","Bort/Gebäck",89,"Bio Dreikornbrot ",5.2,"1 kg",null,0]
[null,"Brauchart","Preis pro kg","Bort/Gebäck",90,"Bio Sonnenbrot",5.5,"1 kg",null,0]
[null,"Brauchart","Preis pro kg","Bort/Gebäck",91,"Bio Dinkelbrot SBK",5.5,"1 kg",null,0]
[null,"Brauchart",null,"Bort/Gebäck",92,"Bio Dinkelbrot",5.3,"1 kg",null,0]
[null,"Brauchart",null,"Bort/Gebäck",93,"Bio Vollkorn Striezel",11,"1 kg",null,0]
[null,"Brauchart",null,"Bort/Gebäck",94,"Bio Baguette",7.5,"1 kg",null,0]
[null,"Brauchart",null,"Bort/Gebäck",95,"Bio Osterbrot m. Rosinen",12,"1 Stk",null,0]
[null,"Brauchart",null,"Bort/Gebäck",96,"Bio Osterpinze",16,"1 kg",null,0]
[null,"Brauchart",null,"Bort/Gebäck",97,"Bio Osterpinze klein",2,"1 Stk",null,0]
[null,"Brauchart",null,"Milchprod.",98,"Bio Rohmilch 1 Liter",1.5,"1 l",null,0]
[null,"Brauchart",null,"Milchprod.",99,"Bio Vollmilch Joghurt 250 ml ",0.8,"250 ml",null,0]
[null,"Brauchart",null,"Milchprod.",100,"Bio Vollmilch Joghurt 500 ml",1.6,"500 ml",null,0]
[null,"Brauchart",null,"Milchprod.",101,"Bio Rohmilch Butter 250 g ",4.7,"250 gr",null,0]
[null,"Brauchart",null,"Öl",102,"Bio Kürbiskernöl 0.5 l",12.5,"500 ml",null,0]
[null,"Brauchart",null,"Öl",103,"Bio Kürbiskernöl 1 l",24,"1 l",null,0]
[null,"Schweighofer",null,"Bort/Gebäck",104,"Bio Apfellandbrot Vollkorn-Roggen-Dinkel",5.4,"1 kg",null,0]
[null,"Schweighofer",null,"Bort/Gebäck",105,"Bio Apfellandbrot Vollkorn-Dinkel",6.2,"1 kg",null,0]
[null,"Schweighofer",null,"Bort/Gebäck",106,"Bio Apfellandbrot Vollkorn Hafer-Roggen",6.2,"1 kg",null,0]
[null,"Schweighofer",null,"Getreide/Mehl",107,"Bio Dinkel",2.8,"1 kg",null,0]
[null,"Schweighofer",null,"Getreide/Mehl",108,"Bio Roggen",1.9,"1 kg",null,0]
[null,"Schweighofer",null,"Getreide/Mehl",109,"Bio Hafer",2.8,"1 kg",null,0]
[null,"Schweighofer",null,"Getreide/Mehl",110,"Bio Dinkel-Vollmehl",2.9,"1 kg",null,0]
[null,"Schweighofer",null,"Getreide/Mehl",111,"Bio Roggen-Vollmehl",2.1,"1 kg",null,0]
[null,"Schweighofer",null,"Getreide/Mehl",112,"Bio Haferflocken",1.5,"250 gr",null,0]
[null,"Schweighofer","incl. Pfand 50 cent","Saft",113,"Bio Apfelsaft Naturtrüb",2.9,"1 l",null,{"$f":"G118*I118","v":0}]
[null,"Schweighofer","incl. Pfand 50 cent","Saft",114,"Bio Zwetschkennektar",4,"1 l",null,0]
[null,"Schweighofer",null,"Obst",115,"Bio Apfelringe, gedörrt",2.5,"60 gr",null,0]
[null,"Schweighofer",null,"Obst",116,"Bio Gala",2.4,"1 kg",null,0]
[null,"Schweighofer",null,"Obst",117,"Bio Idared",2.4,"1 kg",null,0]
[null,"Schweighofer",null,"Obst",118,"Bio Kronprinz",2.4,"1 kg",null,0]
[null,"Schweighofer",null,"Obst",119,"Bio Novajo",2.4,"1 kg",null,0]
[null,"Schweighofer",null,"Obst",121,"Bio Topaz",2.4,"1 kg",null,0]
[null,"Schweighofer",null,"Obst",120,"Junge veredelte Obstbäume zur Neupflanzung Sorte ELSTAR",10,"1 Stk.",null,{"$f":"G126*I126","v":0}]
[null,"Unger",null,"Getreide/Mehl",122,"Bio Weizenkorn",1.4,"1 kg",null,0]
[null,"Unger",null,"Getreide/Mehl",123,"Bio Dinkelkorn",2.4,"1 kg",null,0]
[null,"Unger",null,"Getreide/Mehl",124,"Bio Hafer",2.4,"1 kg",null,0]
[null,"Unger",null,"Getreide/Mehl",125,"Bio Dinkelreis",3.2,"1 kg",null,0]
[null,"Unger",null,"Getreide/Mehl",126,"Bio Dinkelreis",1.9,"500 gr",null,{"$f":"G131*I131","v":0}]
[null,"Unger",null,"Getreide/Mehl",127,"Bio Rotkornreis",3.2,"1 kg",null,0]
[null,"Unger",null,"Getreide/Mehl",128,"Bio Rotkornreis",1.9,"500 gr",null,0]
[null,"Unger",null,"Getreide/Mehl",129,"Bio Haferreis",3.2,"1 kg",null,0]
[null,"Unger",null,"Getreide/Mehl",130,"Bio Haferreis",1.9,"500 gr",null,0]
[null,"Unger",null,"Getreide/Mehl",131,"Bio Roggenkorn",1.4,"1 kg",null,0]
[null,"Unger",null,"Getreide/Mehl",132,"Bio Waldstaudekorn",2.4,"1 kg",null,0]
[null,"Unger",null,"Getreide/Mehl",133,"Bio Rotkorn",2.4,"1 kg",null,0]
[null,"Unger",null,"Getreide/Mehl",134,"Bio Waldstaudekornmehl ",2.6,"1 kg",null,0]
[null,"Unger",null,"Getreide/Mehl",135,"Bio Waldstaudekornmehl ",1.5,"500 gr",null,{"$f":"G140*I140","v":0}]
[null,"Unger",null,"Getreide/Mehl",136,"Bio Rotkornmehl",2.6,"1 kg",null,0]
[null,"Unger",null,"Getreide/Mehl",137,"Bio Rotkornmehl",1.5,"500 gr",null,0]
[null,"Unger",null,"Getreide/Mehl",138,"Bio Hafermehl",2.6,"1 kg",null,0]
[null,"Unger",null,"Getreide/Mehl",139,"Bio Hafermehl",1.5,"500 gr",null,0]
[null,"Unger",null,"Getreide/Mehl",140,"Bio Sojabohnen",2.2000000000000002,"1 kg",null,0]
[null,"Unger",null,"Getreide/Mehl",141,"Bio Sojabohnen",1.3,"500 gr",null,0]
[null,"Unger",null,"Getreide/Mehl",142,"Bio Maisgries (Polenta)",3.1,"1 kg",null,0]
[null,"Unger",null,"Getreide/Mehl",143,"Bio Maisgries (Polenta)",1.8,"500 gr",null,{"$f":"G148*I148","v":0}]
[null,"Unger",null,"Getreide/Mehl",144,"Bio Maismehl",1.4,"1 kg",null,0]
[null,"Unger",null,"Getreide/Mehl",145,"Bio Maismehl",0.8,"500 gr",null,{"$f":"G150*I150","v":0}]
[null,"Unger",null,"Getreide/Mehl",146,"Bio Leinsamen",3.5,"1 kg",null,0]
[null,"Unger",null,"Getreide/Mehl",147,"Bio Leinsamen",1.9,"500 gr",null,{"$f":"G152*I152","v":0}]
[null,"Unger",null,"Getreide/Mehl",148,"Bio Leinpresskuchen",3.2,"1 kg",null,0]
[null,"Unger",null,"Getreide/Mehl",149,"Bio Leinpresskuchen",2,"500 gr",null,{"$f":"G154*I154","v":0}]
[null,"Unger",null,"Getreide/Mehl",150,"Bio Hanfpresskuchen fein",3.2,"1 kg",null,0]
[null,"Unger",null,"Getreide/Mehl",151,"Bio Hanfpresskuchen fein",2,"500 gr",null,{"$f":"G156*I156","v":0}]
[null,"Unger",null,"Getreide/Mehl",152,"Bio Haferflocken",3.2,"1 kg",null,0]
[null,"Unger",null,"Getreide/Mehl",153,"Bio Haferflocken",2,"500 gr",null,{"$f":"G158*I158","v":0}]
[null,"Unger",null,"Öl",154,"Bio Leinöl (Kaltgepresst)",3.9,"100 ml",null,0]
[null,"Unger",null,"Öl",155,"Bio Leinöl (Kaltgepresst)",7.5,"250 ml",null,{"$f":"G160*I160","v":0}]
[null,"Unger",null,"Öl",156,"Bio Sonnenblumenöl (Kaltgepresst) ",1.9,"100 ml",null,0]
[null,"Unger",null,"Öl",157,"Bio Sonnenblumenöl (Kaltgepresst) ",2.9,"250 ml",null,0]
[null,"Unger",null,"Öl",158,"Bio Sonnenblumenöl (Kaltgepresst) ",4.9000000000000004,"500 ml",null,0]
[null,"Unger",null,"Öl",159,"Bio Sonnenblumenöl (Kaltgepresst) ",8.9,"1 l",null,0]
[null,"Unger",null,"Öl",160,"Bio Hanföl (Kaltgepresst)",4.5999999999999996,"100 ml",null,0]
[null,"Unger",null,"Öl",161,"Bio Hanföl (Kaltgepresst)",8.9,"250 ml",null,0]
[null,"Unger",null,"Getreide/Mehl",162,"Bio Sojaknabberkerne",1.9,"170 gr",null,0]
[null,"Unger",null,"Getreide/Mehl",163,"Bio Hanfsamen geschält",4.8,"200 gr",null,0]
[null,"Unger",null,"Getreide/Mehl",164,"Bio Hanfsamen geschält",9.9,"500 gr",null,0]
[null,"Gartner","Kräuterslaz im Glas","Kräuter",165,"Bio Prise Glück",2.9,"30 ml",null,0]
[null,"Gartner","Kräuterslaz im Glas","Kräuter",166,"Bio Prise Glück",6.2,"90 ml",null,0]
[null,"Gartner","Kräuterslaz im Glas","Kräuter",167,"Bio Chilisalz",2.9,"30 ml",null,0]
[null,"Gartner","Kräuterslaz im Glas","Kräuter",168,"Bio Chilisalz",6.2,"90 ml",null,0]
[null,"Gartner","Kräuterslaz im Glas","Kräuter",169,"Bio Maggmich",2.9,"30 ml",null,{"$f":"G174*I174","v":0}]
[null,"Gartner","Kräuterslaz im Glas","Kräuter",170,"Bio Maggmich",6.2,"90 ml",null,0]
[null,"Gartner","Kräuterslaz im Glas","Kräuter",171,"Bio Für's Hendl",2.9,"30 ml",null,{"$f":"G176*I176","v":0}]
[null,"Gartner","Kräuterslaz im Glas","Kräuter",172,"Bio Für's Hendl",6.2,"90 ml",null,0]
[null,"Gartner","Kräuterslaz im Glas","Kräuter",173,"Bio Für'n Fisch",2.9,"30 ml",null,{"$f":"G178*I178","v":0}]
[null,"Gartner","Kräuterslaz im Glas","Kräuter",174,"Bio Für'n Fisch",6.2,"90 ml",null,0]
[null,"Gartner","Kräuterslaz im Glas","Kräuter",175,"Bio Für's Grillen",2.9,"30 ml",null,{"$f":"G180*I180","v":0}]
[null,"Gartner","Kräuterslaz im Glas","Kräuter",176,"Bio Für's Grillen",6.2,"90 ml",null,0]
[null,"Gartner","Kräuterslaz im Glas","Kräuter",177,"Bio Mediteranes ",2.9,"30 ml",null,{"$f":"G182*I182","v":0}]
[null,"Gartner","Kräuterslaz im Glas","Kräuter",178,"Bio Mediteranes ",6.2,"90 ml",null,0]
[null,"Gartner","mit Mühle","Kräuter",179,"Bio Pizza Kräutermischung ohne Salz",5.6,"90 ml",null,0]
[null,"Gartner","Suppenmischung ","Kräuter",180,"Bio Suppenwürze",7.2,"90 ml",null,{"$f":"G185*I185","v":0}]
[null,"Gartner","Tee im Glas","Kräuter",181,"Bio Kräutertee",3.8,"1 Stk",null,0]
[null,"Gartner","Tee im Glas","Kräuter",182,"Bio Zum Durchatmen ",3.8,"1 Stk",null,0]
[null,"Gartner","Tee im Glas","Kräuter",183,"Bio Frau sein",3.8,"1 Stk",null,0]
[null,"Gartner","Tee im Glas","Kräuter",184,"Bio Zum Reinigen",3.8,"1 Stk",null,0]
[null,"Gartner","Tee im Glas","Kräuter",185,"Bio Kum zur Rua",3.8,"1 Stk",null,0]
[null,"Gartner","Tee im Glas","Kräuter",186,"Bio Bittertee",3.8,"1 Stk",null,0]
[null,"Gartner","Tee im Glas","Kräuter",187,"Bio Alles Minze",3.8,"1 Stk",null,0]
[null,"Hofmeister","Hendl pro kg - Abrechnung nach Gewicht","Fleisch",188,"Bio Hendl halbe 11,8/kg ",11.8,"1 Stk"]
[null,"Hofmeister","Hendl pro kg - Abrechnung nach Gewicht","Fleisch",189,"Bio Hendl im ganzen 11,8/kg",11.8,"1 Stk",null,{"$f":"G194*I194","v":0}]
[null,"Knaus","Rotwein trocken","Wein",190,"Cabernet Sauvignon ",9.5,"0,75 l",null,0]
[null,"Knaus","Weiswein trocken","Wein",191,"Bio Welschriesling",8.5,"0,75 l",null,0]
[null,"Knaus","Weiswein süß","Wein",192,"Bio Weißburgunder",9.5,"0,75 l",null,0]
[null,"Knaus","Weiswein trocken","Wein",193,"Bio Muskateller",10.5,"0,75 l",null,0]
[null,"Knaus","Weiswein trocken","Wein",194,"Bio Sauvignon blanc ",9.5,"0,75 l",null,0]
[null,"Knaus","Weiswein trocken","Wein",195,"Bio Morillon",9.5,"0,75 l",null,0]
[null,"Knaus","Weiswein süß","Wein",196,"Bio Sauvignon blanc (Süß, Bienchen)",10.5,"0,75 l",null,0]
[null,"Hofmeister","Abrechnung nach Gewicht","Gemüse",197,"Bio Vogerlsalat ",2.2000000000000002,"100 gr",null,0]
[null,"Hofmeister","Abrechnung nach Gewicht","Gemüse",198,"Bio Rucola ",2.2000000000000002,"100 gr",null,0]
[null,"Hofmeister","Abrechnung nach Gewicht","Gemüse",199,"Bio Spinat ",1.1000000000000001,"100 gr",null,0]
[null,"Hofmeister","Abrechnung nach Gewicht","Gemüse",200,"Bio Schwarzwurzeln - € 6,3 / kg",2,"1 Stk.",null,0]
[null,"Hofmeister","Abrechnung nach Gewicht","Gemüse",201,"Bio Möhren Orange oder Gelbe",2.9,"1 kg",null,0]
[null,"Hofmeister","Abrechnung nach tatsächlichem Gewicht","Gemüse",202,"Bio Kren - € 10,6 / kg",2,"1 Stk.",null,0]
[null,"Hofmeister","Abrechnung nach tatsächlichem Gewicht","Gemüse",203,"Bio Pastinaken - € 5,3 / kg",2,"1 Stk.",null,0]
[null,"Hofmeister","Abrechnung nach tatsächlichem Gewicht","Gemüse",204,"Bio Petersilienwurzel - € 5,6 / kg",2,"1 Stk",null,0]
[null,"Hofmeister","Abrechnung nach tatsächlichem Gewicht","Gemüse",205,"Bio Lauch - € 6,3 / kg",2,"1 Stk.",null,0]
[null,"Hofmeister","Abrechnung nach tatsächlichem Gewicht","Gemüse",206,"Bio Sellerie - € 4,5 / kg",2,"1 Stk.",null,0]
[null,"Hofmeister","Abrechnung nach tatsächlichem Gewicht","Gemüse",207,"Bio Rettich - € 2 / kg",1,"1 Stk",null,0]
[null,"Hofmeister","Abrechnung nach tatsächlichem Gewicht","Gemüse",208,"Bio Knoblauch ",1.95,"100 gr",null,0]
[null,"Hofmeister","Abrechnung nach tatsächlichem Gewicht","Gemüse",209,"Bio Zwiebel gelb - € 3,4 / kg",0.34,"100 gr",null,0]
[null,"Hofmeister","Abrechnung nach tatsächlichem Gewicht","Gemüse",210,"Bio Sauerkraut - € 3,2/ kg",0.32,"100 gr",null,0]
[null,"Hofmeister","Abrechnung nach tatsächlichem Gewicht","Gemüse",211,"Bio Käferbohnen - € 9,8 / kg",0.98,"100 gr",null,0]
[null,"Hofmeister","Fam. Pranger","Gemüse",212,"Bio Pfefferonipaste scharf  110 gr",4.9000000000000004,"1 Glas",null,0]
[null,"Hofmeister","Fam. Pranger","Gemüse",213,"Bio Rote Rüben Salat 380 gr",4.5999999999999996,"1 Glas",null,0]
[null,"Hofmeister","Fam. Pranger","Gemüse",214,"Bio Gurkenräder 385 gr",4.5999999999999996,"1 Glas",null,0]
[null,"Hofmeister","Fam. Pranger","Gemüse",215,"Bio Tomatenwürzsoße 250 gr",6.7,"1 Glas",null,0]
[null,null,null,null,null,null,null,null,null,0]
[null,null,null,null,null,null,null,null,null,0]
[null,null,null,null,null,null,null,null,null,0]
[null,null,null,null,null,null,null,null,null,0]
[null,null,null,null,null,null,null,null,null,0]
[null,null,null,null,null,null,null,null,null,0]
[null,null,null,null,null,null,null,null,null,0]
[null,null,null,null,null,null,null,null,null,0]
[null,null,null,null,null,null,null,null,null,0]
[null,null,null,null,null,null,null,null,null,0]
[null,null,null,null,null,null,null,null,null,0]
[null,"Ende"]

{"sheet":"as","index":1,"n_rows":27,"n_cols":4,"rows_kept":27,"cut":false,"hidden":true,"merged":[]}
["Datum Markt","Menge","(Mehrere Elemente)"]
["2020-04-04","Produkte von","Pscheiden"]
["2020-04-18"]
["2020-05-02","Zeilenbeschriftungen","Summe von Menge","Summe von Preis"]
["2020-05-16","Gesamtergebnis"]
["2020-05-30"]
["2020-06-13",null,"2020-04-30"]
["2020-06-27",{"$f":"INDEX(A2:A32,MATCH(MIN(IF(A2:A32<>\"\",MOD((MONTH(A2:A32)+DAY(A2:A32)/100-MONTH(C7)-DAY(C7)/100)+0.001,12.31))),IF(A2:A32<>\"\",MOD((MONTH(A2:A32)+DAY(A2:A32)/100-MONTH(C7)-DAY(C7)/100)+0.001,12.31)),0))","v":{"$error":"#N/A"}}]
["2020-07-11",{"$f":"IF(A2:A32>=C7,MIN(A2:A32),\"XX\")","v":"2020-04-04"}]
["2020-07-25",{"$f":"INDEX(A2:A32,MIN(IF(A2:A32=MIN(IF(A2:A32>C7,A2:A32)),ROW(A2:A32))))","v":"2020-07-25"}]
["2020-08-08"]
["2020-08-22"]
["2020-09-05"]
["2020-09-19"]
["2020-10-03"]
["2020-10-17"]
["2020-10-31"]
["2020-11-14"]
["2020-11-28"]
["2020-12-12"]
["2020-12-26"]
["2021-01-09"]
["2021-01-23"]
["2021-02-06"]
["2021-02-20"]
["2021-03-06"]
["2021-03-20"]

{"sheet":"Ergebnisliste","index":2,"n_rows":4,"n_cols":6,"rows_kept":4,"cut":false,"hidden":false,"merged":[[0,0,0,1],[1,0,1,1],[2,0,2,1],[0,4,0,5],[0,2,0,3],[1,2,1,3],[2,2,2,3],[1,4,2,5]]}
["Name",null,{"$f":"IF('Produkte Milis_Biooase'!C2=\"\",\"\",'Produkte Milis_Biooase'!C2)","v":"Dein Name"},null,"Bestellsumme"]
["email",null,{"$f":"IF('Produkte Milis_Biooase'!C3=\"\",\"\",'Produkte Milis_Biooase'!C3)","v":"Deine Email"},null,{"$f":"'Produkte Milis_Biooase'!I4","v":0}]
["Abholung am",null,{"$f":"IF('Produkte Milis_Biooase'!C1=\"\",\"\",'Produkte Milis_Biooase'!C1)","v":"2020-04-18"}]
[null,null,null,null,null,{"$f":"E2","v":0}]

{"sheet":"Kriterien","index":3,"n_rows":2,"n_cols":10,"rows_kept":2,"cut":false,"hidden":true,"merged":[]}
[null,"   Produkte von","Kommentar","Gruppe","Nr","Produkt","EZ Preis ","Einheit","Menge","Preis"]
[null,null,null,null,null,null,null,null,null,">1"]